fUSD/lending_fUSD_20250209
["ID","MTS","AMOUNT","RATE_DAILY","PERIOD"]
[352477728,1739133039668,-1000.0,0.00011638,2]
[352477729,1739133039679,-1000.0,0.00011638,2]
[352477730,1739133039688,-500.0,0.00011643,2]
[352477731,1739133039698,-588.9,0.00011643,2]
[352477732,1739133039709,-500.0,0.00011643,2]
[352477733,1739133039718,-500.0,0.00011643,2]
[352477734,1739133039727,-500.0,0.00011643,2]
[352477735,1739133039736,-500.0,0.00011643,2]
[352477736,1739133039745,-547.79,0.00011643,2]
[352477737,1739133039755,-3512.4204297,0.00011672,2]
[352477738,1739133039764,-500.0,0.0001178,2]
[352477739,1739133039773,-588.9,0.0001178,2]
[352477740,1739133039784,-500.0,0.0001178,2]
[352477741,1739133039794,-500.0,0.0001178,2]
[352477742,1739133039803,-500.0,0.0001178,2]
[352477743,1739133039813,-500.0,0.0001178,2]
[352477744,1739133039822,-547.79,0.0001178,2]
[352477745,1739133039832,-500.0,0.00011917,2]
[352477746,1739133039841,-588.9,0.00011917,2]
[352477747,1739133039851,-500.0,0.00011917,2]
[352477748,1739133039861,-500.0,0.00011917,2]
[352477749,1739133039870,-500.0,0.00011917,2]
[352477750,1739133039879,-500.0,0.00011917,2]
[352477751,1739133039888,-547.79,0.00011917,2]
[352477752,1739133039897,-1000.0,0.00012,2]
[352477753,1739133039906,-500.0,0.00012054,2]
[352477754,1739133039916,-588.9,0.00012054,2]
[352477756,1739133039925,-500.0,0.00012054,2]
[352477757,1739133039935,-500.0,0.00012054,2]
[352477758,1739133039944,-500.0,0.00012054,2]
[352477759,1739133039955,-500.0,0.00012054,2]
[352477760,1739133039965,-547.79,0.00012054,2]
[352477761,1739133039974,-500.0,0.00012191,2]
[352477762,1739133039983,-588.9,0.00012191,2]
[352477763,1739133039993,-500.0,0.00012191,2]
[352477764,1739133040002,-500.0,0.00012191,2]
[352477765,1739133040011,-448.06973806,0.00012191,2]
[352477768,1739133040020,-500.0,0.00012191,2]
[352477769,1739133040030,-547.79,0.00012191,2]
[352477770,1739133040040,-500.0,0.0001232,2]
[352477771,1739133040050,-500.0,0.00012328,2]
[352477772,1739133040059,-588.9,0.00012328,2]
[352477773,1739133040068,-408.22,0.00012328,2]
[352477774,1739133040077,-500.0,0.00012328,2]
[352477775,1739133040093,-500.0,0.00012328,2]
[352477776,1739133040102,-547.79,0.00012328,2]
[352477777,1739133040121,-250.0,0.0001237,2]
[352477778,1739133040132,-500.0,0.00012465,2]
[352477779,1739133040141,-588.9,0.00012465,2]
[352477780,1739133040151,-500.0,0.00012465,2]
[352477781,1739133040161,-317.52808556,0.00012465,2]
[352477782,1739133040171,-547.79,0.00012465,2]
[352477783,1739133040181,-300.0,0.00012601,2]
[352477784,1739133040192,-500.0,0.00012602,2]
[352477785,1739133040201,-500.0,0.00012602,2]
[352477786,1739133040212,-500.0,0.00012602,2]
[352477787,1739133040221,-500.0,0.00012602,2]
[352477788,1739133040232,-500.0,0.00012602,2]
[352477789,1739133040242,-500.0,0.00012602,2]
[352477790,1739133040252,-500.0,0.00012602,2]
[352477791,1739133040261,-500.0,0.00012602,2]
[352477792,1739133040271,-500.0,0.00012602,2]
[352477793,1739133040281,-500.0,0.00012602,2]
[352477794,1739133040291,-500.0,0.00012602,2]
[352477795,1739133040301,-500.0,0.00012602,2]
[352477796,1739133040310,-500.0,0.00012602,2]
[352477797,1739133040319,-500.0,0.00012602,2]
[352477798,1739133040329,-500.0,0.00012602,2]
[352477799,1739133040339,-500.0,0.00012602,2]
[352477800,1739133040348,-500.0,0.00012602,2]
[352477801,1739133040357,-157.55,0.00012602,2]
[352477802,1739133040367,-588.9,0.00012602,2]
[352477803,1739133040376,-500.0,0.00012602,2]
[352477804,1739133040386,-547.79,0.00012602,2]
[352477805,1739133040395,-2024.0,0.00012644,2]
[352477806,1739133040404,-3913.0,0.00012644,2]
[352477807,1739133040414,-1273.0,0.00012644,2]
[352477808,1739133040423,-1007.0,0.00012644,2]
[352477809,1739133040433,-154.414,0.00012644,2]
[352477810,1739133040442,-1109.0,0.00012644,2]
[352477811,1739133040451,-568.0,0.00012644,2]
[352477812,1739133040461,-150.0,0.00012644,2]
[352477813,1739133040471,-638.0,0.00012644,2]
[352477814,1739133040480,-1827.0,0.00012644,2]
[352477815,1739133040490,-588.9,0.00012739,2]
[352477816,1739133040499,-500.0,0.00012739,2]
[352477817,1739133040508,-547.79,0.00012739,2]
[352477818,1739133040517,-5556.0,0.000128,2]
[352477819,1739133040527,-588.9,0.00012876,2]
[352477820,1739133040536,-500.0,0.00012876,2]
[352477821,1739133040546,-547.79,0.00012876,2]
[352477822,1739133040556,-150.0,0.00012999,2]
[352477823,1739133040566,-5555.0,0.00013,3]
[352477824,1739133040575,-588.9,0.00013013,2]
[352477825,1739133040585,-547.79,0.00013013,2]
[352477826,1739133040599,-588.91476534,0.0001315,2]
[352477827,1739133040608,-547.85211336,0.0001315,2]
[352477828,1739133040618,-300.0,0.00013184,2]
[352477829,1739133040627,-300.0,0.00013184,2]
[352477830,1739133040638,-300.0,0.00013184,2]
[352477831,1739133040647,-23900.0,0.00013185,2]
[352477832,1739133040657,-398.32,0.00013293,2]
[352477833,1739133040667,-5555.0,0.000133,5]
[352477834,1739133040677,-250.0,0.00013325,2]
[352477835,1739133040686,-1447.42,0.00013415,2]
[352477836,1739133040695,-1500.0,0.00013421,2]
[352477837,1739133040704,-248.39,0.00013448,2]
[352477838,1739133040714,-1617.9,0.00013453,2]
[352477839,1739133040724,-300.0,0.00013496,2]
[352477840,1739133040733,-13310.06,0.00013497,2]
[352477841,1739133040742,-214.0,0.0001367,2]
[352477842,1739133040751,-500.0,0.00013698,2]
[352477843,1739133040760,-334.83,0.00013699,2]
[352477844,1739133040769,-1557.4,0.00013699,2]
[352477845,1739133040779,-500.0,0.00013699,13]
[352477846,1739133040788,-500.0,0.00013699,13]
[352477847,1739133040797,-500.0,0.00013699,13]
[352477848,1739133040806,-500.0,0.00013699,13]
[352477849,1739133040815,-500.0,0.00013699,13]
[352477850,1739133040825,-500.0,0.00013699,13]
[352477851,1739133040834,-500.0,0.00013699,13]
[352477852,1739133040843,-500.0,0.00013699,13]
[352477853,1739133040852,-500.0,0.00013699,13]
[352477854,1739133040861,-500.0,0.00013699,13]
[352477855,1739133040871,-500.0,0.00013699,13]
[352477856,1739133040880,-500.0,0.00013699,13]
[352477857,1739133040889,-500.0,0.00013699,13]
[352477858,1739133040898,-500.0,0.00013699,13]
[352477859,1739133040908,-500.0,0.00013699,13]
[352477860,1739133040917,-500.0,0.00013699,13]
[352477861,1739133040926,-500.0,0.00013699,13]
[352477862,1739133040935,-500.0,0.00013699,13]
[352477863,1739133040944,-500.0,0.00013699,13]
[352477864,1739133040954,-500.0,0.00013699,13]
[352477865,1739133040964,-500.0,0.00013699,13]
[352477866,1739133040974,-500.0,0.00013699,13]
[352477867,1739133040983,-500.0,0.00013699,13]
[352477868,1739133040992,-500.0,0.00013699,13]
[352477869,1739133041001,-500.0,0.00013699,13]
[352477870,1739133041011,-500.0,0.00013699,13]
[352477871,1739133041020,-500.0,0.00013699,13]
[352477872,1739133041030,-500.0,0.00013699,13]
[352477873,1739133041039,-500.0,0.00013699,13]
[352477874,1739133041048,-500.0,0.00013699,13]
[352477875,1739133041057,-500.0,0.00013699,13]
[352477876,1739133041066,-500.0,0.00013699,13]
[352477877,1739133041075,-443.0,0.00013699,13]
[352477878,1739133041085,-160.37710199,0.00013699,2]
[352477879,1739133041094,-500.0,0.00013699,2]
[352477880,1739133041103,-518.51248298,0.00013699,2]
[352477881,1739133041112,-207.10730335,0.00013699,2]
[352477882,1739133041121,-358.06945221,0.00013699,2]
[352477883,1739133041130,-324.28653745,0.00013699,2]
[352477884,1739133041139,-500.0,0.00013699,2]
[352477885,1739133041148,-517.42365454,0.00013699,2]
[352477886,1739133041158,-500.0,0.00013699,2]
[352477887,1739133041167,-500.0,0.00013699,2]
[352477888,1739133041176,-500.0,0.00013699,2]
[352477889,1739133041186,-500.0,0.00013699,2]
[352477890,1739133041195,-304.22918971,0.00013699,2]
[352477891,1739133041205,-9221.4,0.000137,2]
[352477892,1739133041215,-9221.4,0.000137,2]
[352477893,1739133041224,-6803.98601858,0.0001377,2]
[352477894,1739133041233,-300.0,0.0001377,2]
[352477895,1739133041243,-300.0,0.0001377,2]
[352477896,1739133041252,-300.0,0.0001377,2]
[352477897,1739133041261,-376.15,0.00013771,2]
[352477898,1739133041270,-199.021326,0.00013771,2]
[352477899,1739133041280,-502.94715284,0.00013771,2]
[352477900,1739133041289,-500.0,0.00013771,2]
[352477901,1739133041298,-500.86528397,0.00013771,2]
[352477902,1739133041307,-500.0,0.00013771,2]
[352477903,1739133041316,-500.0,0.00013771,2]
[352477904,1739133041326,-500.0,0.00013771,2]
[352477905,1739133041335,-500.0,0.00013771,2]
[352477906,1739133041345,-500.0,0.00013771,2]
[352477907,1739133041354,-500.0,0.00013771,2]
[352477908,1739133041363,-500.0,0.00013771,2]
[352477909,1739133041372,-500.0,0.00013771,2]
[352477910,1739133041381,-428.85766724,0.00013771,2]
[352477911,1739133041391,-500.0,0.00013771,2]
[352477912,1739133041400,-500.0,0.00013771,2]
[352477913,1739133041410,-500.0,0.00013771,2]
[352477914,1739133041419,-500.54774481,0.00013771,2]
[352477915,1739133041428,-500.0,0.00013771,2]
[352477916,1739133041437,-500.0,0.00013771,2]
[352477917,1739133041446,-500.29617849,0.00013771,2]
[352477918,1739133041456,-500.0,0.00013771,2]
[352477919,1739133041465,-500.0,0.00013771,2]
[352477920,1739133041475,-500.0,0.00013771,2]
[352477921,1739133041484,-500.0,0.00013771,2]
[352477922,1739133041494,-500.0,0.00013771,2]
[352477923,1739133041503,-500.0,0.00013771,2]
[352477924,1739133041512,-500.0,0.00013771,2]
[352477925,1739133041521,-500.0,0.00013771,2]
[352477926,1739133041531,-500.0,0.00013771,2]
[352477927,1739133041540,-500.0,0.00013771,2]
[352477928,1739133041549,-500.0,0.00013771,2]
[352477929,1739133041558,-500.0,0.00013771,2]
[352477930,1739133041568,-500.0,0.00013771,2]
[352477931,1739133041577,-301.85151837,0.00013771,2]
[352477932,1739133041587,-500.0,0.00013771,2]
[352477933,1739133041599,-500.0,0.00013771,2]
[352477934,1739133041609,-500.0,0.00013771,2]
[352477935,1739133041618,-500.0,0.00013771,2]
[352477936,1739133041629,-500.0,0.00013771,2]
[352477937,1739133041639,-500.0,0.00013771,2]
[352477938,1739133041648,-500.0,0.00013771,2]
[352477939,1739133041658,-364.14963329,0.00013771,2]
[352477940,1739133041669,-502.48821203,0.00013771,2]
[352477941,1739133041679,-545.01031305,0.00013771,2]
[352477942,1739133041688,-502.40829274,0.00013771,2]
[352477943,1739133041697,-500.0,0.00013771,2]
[352477944,1739133041708,-500.0,0.00013771,2]
[352477945,1739133041717,-500.71616535,0.00013771,2]
[352477946,1739133041726,-500.0,0.00013771,2]
[352477947,1739133041736,-501.58656571,0.00013771,2]
[352477948,1739133041746,-500.0,0.00013771,2]
[352477949,1739133041755,-500.0,0.00013771,2]
[352477950,1739133041766,-500.0,0.00013771,2]
[352477951,1739133041775,-500.0,0.00013771,2]
[352477952,1739133041785,-500.0,0.00013771,2]
[352477953,1739133041794,-500.0,0.00013771,2]
[352477954,1739133041803,-500.0,0.00013771,2]
[352477955,1739133041814,-500.0,0.00013771,2]
[352477956,1739133041824,-500.0,0.00013771,2]
[352477957,1739133041834,-330.11465523,0.00013771,2]
[352477958,1739133041843,-500.0,0.00013771,2]
[352477959,1739133041852,-500.0,0.00013771,2]
[352477960,1739133041861,-500.0,0.00013771,2]
[352477961,1739133041870,-500.0,0.00013771,2]
[352477962,1739133041879,-195.37222443,0.00013771,2]
[352477963,1739133041888,-800.0,0.00013772,2]
[352477964,1739133041898,-2100.0,0.00013772,2]
[352477965,1739133041907,-2000.0,0.00013772,2]
[352477966,1739133041917,-152.580515,0.00013857,2]
[352477967,1739133041926,-161.43966435,0.00013867,2]
[352477968,1739133041936,-500.0,0.00013867,2]
[352477969,1739133041945,-436.93170626,0.00013908,2]
[352477970,1739133041954,-500.0,0.00013908,2]
[352477971,1739133041964,-500.0,0.00013908,2]
[352477972,1739133041973,-500.0,0.00013908,2]
[352477973,1739133041982,-500.0,0.00013908,2]
[352477974,1739133041992,-477.90446196,0.00013908,2]
[352477975,1739133042001,-341.69775308,0.00013908,2]
[352477976,1739133042010,-500.0,0.00013908,2]
[352477977,1739133042019,-500.0,0.00013908,2]
[352477978,1739133042028,-223.20966926,0.00013908,2]
[352477979,1739133042037,-300.0,0.00013999,2]
[352477980,1739133042047,-110063.33680415,0.00014,2]
[352477981,1739133042055,-32334.89549033,0.00014,2]
[352477982,1739133042065,-3968.51744647,0.00014,2]
[352477983,1739133042074,-1059.0,0.00014009,2]
[352477984,1739133042083,-214.0,0.0001418,2]
[352477985,1739133042093,-500.0,0.00014198,2]
[352477986,1739133042102,-500.0,0.00014198,2]
[352477987,1739133042112,-500.0,0.00014198,2]
[352477988,1739133042121,-348.43107735,0.00014198,2]
[352477989,1739133042130,-500.0,0.00014198,2]
[352477990,1739133042139,-500.0,0.00014198,2]
[352477991,1739133042148,-500.0,0.00014198,2]
[352477992,1739133042158,-500.0,0.00014198,2]
[352477993,1739133042167,-500.0,0.00014198,2]
[352477994,1739133042177,-1000.0,0.00014247,2]
[352477995,1739133042187,-1000.0,0.00014247,2]
[352477996,1739133042196,-9866.24171356,0.0001439,2]
[352477997,1739133042205,-691.46909223,0.00014415,2]
[352477998,1739133042216,-3190.50645762,0.0001453,2]
[352477999,1739133042225,-650.72,0.00014685,2]
[352478000,1739133042235,-214.0,0.000147,2]
[352478001,1739133042244,-55504.90822909,0.000149,4]
[352478002,1739133042253,-300.0,0.00014999,2]
[352478003,1739133042262,-5289.09611525,0.00015,14]
[352478004,1739133042271,-18145.04757118,0.00015,2]
[352478005,1739133042280,-4914.35425034,0.00015,2]
[352478006,1739133042290,-150.31621735,0.00015,20]
[352478007,1739133042299,-24654.37055473,0.00015,2]
[352478008,1739133042308,-815.09912489,0.00015,2]
[352478009,1739133042317,-300.0,0.00015,2]
[352478010,1739133042327,-1018.69269692,0.00015,30]
[352478011,1739133042336,-1019.21013222,0.00015,30]
[352478012,1739133042345,-11727.0,0.00015,2]
[352478013,1739133042355,-38008.67278016,0.00015,4]
[352478015,1739133042365,-900.0,0.00015,16]
[352478018,1739133042375,-800.0,0.00015142,2]
[352478019,1739133042384,-2100.0,0.00015142,2]
[352478022,1739133042394,-2000.0,0.00015142,2]
[352478024,1739133042403,-1225.85338599,0.00015146,15]
[352478026,1739133042413,-1000.0,0.00015174,2]
[352478028,1739133042422,-214.0,0.0001521,2]
[352478030,1739133042432,-1615.65528173,0.00015248,2]
[352478032,1739133042440,-1500.0,0.00015248,2]
[352478034,1739133042452,-1517.64,0.000153,2]
[352478036,1739133042467,-485.8498063,0.000154,2]
[352478040,1739133042476,-2023.0,0.00015644,2]
[352478043,1739133042486,-3913.0,0.00015644,2]
[352478046,1739133042495,-1272.0,0.00015644,2]
[352478049,1739133042506,-1007.0,0.00015644,2]
[352478052,1739133042515,-150.0,0.00015644,2]
[352478056,1739133042524,-1109.0,0.00015644,2]
[352478060,1739133042533,-1827.0,0.00015644,2]
[352478064,1739133042543,-214.0,0.0001572,2]
[352478067,1739133042553,-216.0,0.0001572,2]
[352478070,1739133042563,-197548.94256377,0.000159,2]
[352478073,1739133042573,-152.580515,0.00016072,2]
[352478076,1739133042582,-158.938037,0.00016072,2]
[352478077,1739133042594,-9999.99,0.00016116,2]
[352478078,1739133042603,-214.0,0.0001623,2]
[352478079,1739133042612,-216.0,0.0001623,2]
[352478080,1739133042622,-200.0,0.0001634,2]
[352478081,1739133042632,-200.0,0.00016371,2]
[352478082,1739133042642,-300.0,0.00016399,2]
[352478083,1739133042650,-200552.22631298,0.000164,2]
[352478084,1739133042661,-150.0,0.00016438,2]
[352478085,1739133042673,-1226.39621548,0.0001644,2]
[352478086,1739133042682,-1226.39621548,0.0001644,2]
[352478087,1739133042691,-1226.39621548,0.0001644,2]
[352478088,1739133042701,-1226.39621548,0.0001644,2]
[352478089,1739133042712,-1226.39621548,0.0001644,2]
[352478090,1739133042721,-1226.39621548,0.0001644,2]
[352478091,1739133042730,-1226.39621548,0.0001644,2]
[352478092,1739133042740,-1226.39621548,0.0001644,2]
[352478093,1739133042748,-1226.39621548,0.0001644,2]
[352478094,1739133042758,-1226.39621548,0.0001644,2]
[352478095,1739133042768,-1226.39621548,0.0001644,2]
[352478096,1739133042777,-1226.39621548,0.0001644,2]
[352478097,1739133042786,-1226.39621548,0.0001644,2]
[352478098,1739133042795,-1226.39621548,0.0001644,2]
[352478099,1739133042804,-1226.39621548,0.0001644,2]
[352478100,1739133042814,-1226.39621548,0.0001644,2]
[352478101,1739133042823,-1226.39621548,0.0001644,2]
[352478102,1739133042832,-1226.39621548,0.0001644,2]
[352478103,1739133042841,-1226.39621548,0.0001644,2]
[352478104,1739133042850,-1226.39,0.0001644,2]
[352478105,1739133042859,-1280.00066137,0.0001644,2]
[352478106,1739133042868,-1280.00066137,0.0001644,2]
[352478107,1739133042877,-1280.00066137,0.0001644,2]
[352478108,1739133042886,-1280.00066137,0.0001644,2]
[352478109,1739133042895,-1280.00066137,0.0001644,2]
[352478110,1739133042905,-1280.00066137,0.0001644,2]
[352478111,1739133042914,-1280.00066137,0.0001644,2]
[352478112,1739133042923,-1280.00066137,0.0001644,2]
[352478113,1739133042932,-1280.00066137,0.0001644,2]
[352478114,1739133042942,-1280.00066137,0.0001644,2]
[352478115,1739133042951,-1280.00066137,0.0001644,2]
[352478116,1739133042961,-1280.00066137,0.0001644,2]
[352478117,1739133042969,-1280.00066137,0.0001644,2]
[352478118,1739133042979,-1280.00066137,0.0001644,2]
[352478119,1739133042988,-1280.00066137,0.0001644,2]
[352478120,1739133042997,-1280.00066137,0.0001644,2]
[352478121,1739133043007,-1280.00066137,0.0001644,2]
[352478123,1739133043016,-1280.00066137,0.0001644,2]
[352478125,1739133043027,-1280.00066137,0.0001644,2]
[352478126,1739133043036,-1280.0,0.0001644,2]
[352478127,1739133043045,-1604.76847699,0.0001644,2]
[352478128,1739133043054,-1604.76847699,0.0001644,2]
[352478129,1739133043063,-1604.76847699,0.0001644,2]
[352478130,1739133043072,-1604.76847699,0.0001644,2]
[352478131,1739133043081,-1604.76847699,0.0001644,2]
[352478132,1739133043091,-1604.76847699,0.0001644,2]
[352478133,1739133043100,-1604.76847699,0.0001644,2]
[352478134,1739133043109,-1604.76847699,0.0001644,2]
[352478135,1739133043118,-1604.76847699,0.0001644,2]
[352478136,1739133043127,-1604.76847699,0.0001644,2]
[352478137,1739133043136,-1604.76847699,0.0001644,2]
[352478138,1739133043146,-1604.76847699,0.0001644,2]
[352478139,1739133043156,-1604.76847699,0.0001644,2]
[352478140,1739133043166,-1604.76847699,0.0001644,2]
[352478141,1739133043175,-1604.76847699,0.0001644,2]
[352478142,1739133043185,-1604.76847699,0.0001644,2]
[352478143,1739133043194,-1604.76847699,0.0001644,2]
[352478144,1739133043204,-1604.76847699,0.0001644,2]
[352478145,1739133043215,-1604.76847699,0.0001644,2]
[352478146,1739133043225,-1604.76,0.0001644,2]
[352478147,1739133043235,-2000.0,0.00016472,2]
[352478148,1739133043244,-60966.63613663,0.00016489,4]
[352478149,1739133043254,-200.0,0.00016492,2]
[352478150,1739133043263,-4843.4,0.000165,2]
[352478151,1739133043273,-800.0,0.00016512,2]
[352478152,1739133043283,-2100.0,0.00016512,2]
[352478153,1739133043452,-2000.0,0.00016512,2]
[352478154,1739133043464,-2097.24634232,0.00016546,2]
[352478155,1739133043474,-6419.74,0.000166,7]
[352478156,1739133043483,-94067.69809051,0.000166,2]
[352478157,1739133043493,-391.79,0.00016603,2]
[352478158,1739133043503,-776.75,0.00016658,30]
[352478159,1739133043512,-282.15083,0.00016688,7]
[352478160,1739133043523,-176.34,0.00016712,2]
[352478161,1739133043532,-214.0,0.0001674,2]
[352478162,1739133043542,-216.0,0.0001674,2]
[352478163,1739133043552,-300.0,0.0001677,2]
[352478164,1739133043561,-300.0,0.0001677,2]
[352478165,1739133043571,-450.0,0.0001677,2]
[352478166,1739133043581,-149403.219062,0.00016771,7]
[352478167,1739133043593,-116302.052344,0.00016771,7]
[352478168,1739133043604,-300.0,0.00016879,2]
[352478169,1739133043615,-300.0,0.00016879,2]
[352478170,1739133043624,-31857.18073995,0.0001688,30]
[352478171,1739133043635,-74607.94605157,0.0001688,2]
[352478172,1739133043645,-282.15083,0.00016888,7]
[352478173,1739133043654,-300.0,0.00016899,2]
[352478174,1739133043664,-4690.65,0.000169,31]
[352478175,1739133043675,-4690.65,0.000169,31]
[352478176,1739133043684,-4690.65,0.000169,31]
[352478177,1739133043694,-4690.65,0.000169,31]
[352478178,1739133043704,-4690.65,0.000169,31]
[352478179,1739133043714,-4690.65,0.000169,31]
[352478180,1739133043724,-4690.65,0.000169,31]
[352478181,1739133043734,-4690.65,0.000169,31]
[352478182,1739133043743,-4690.65,0.000169,31]
[352478183,1739133043753,-4690.65,0.000169,31]
[352478184,1739133043763,-4690.65,0.000169,31]
[352478185,1739133043773,-4690.65,0.000169,31]
[352478186,1739133043783,-4690.65,0.000169,31]
[352478187,1739133043793,-4690.65,0.000169,31]
[352478188,1739133043802,-4690.65,0.000169,31]
[352478189,1739133043812,-4690.65,0.000169,31]
[352478190,1739133043822,-86470.214247,0.000169,3]
[352478191,1739133043831,-650.72,0.00016949,2]
[352478192,1739133043842,-500.0,0.00016967,2]
[352478193,1739133043852,-250.0,0.0001697,2]
[352478194,1739133043862,-175.75074083,0.00016986,2]
[352478195,1739133043873,-1983.04,0.00016986,2]
[352478196,1739133043883,-1000.0,0.00017,2]
[352478197,1739133043894,-3266.54282889,0.00017,2]
[352478198,1739133043903,-900.0,0.00017,18]
[352478199,1739133043913,-1000.0,0.00017071,2]
[352478200,1739133043922,-282.15083,0.00017088,7]
[352478201,1739133043932,-334.83,0.00017123,2]
[352478202,1739133043944,-250.0,0.00017123,2]
[352478203,1739133043954,-214.0,0.0001725,2]
[352478204,1739133043964,-216.0,0.0001725,2]
[352478205,1739133043974,-282.15083,0.00017288,7]
[352478206,1739133043983,-282.15083,0.00017488,7]
[352478207,1739133043993,-202.0,0.0001752,2]
[352478208,1739133044003,-152.580515,0.00017523,3]
[352478209,1739133044012,-800.0,0.00017608,2]
[352478210,1739133044022,-2100.0,0.00017608,2]
[352478211,1739133044033,-2000.0,0.00017608,2]
[352478212,1739133044042,-282.15083,0.00017688,7]
[352478213,1739133044052,-214.0,0.0001776,2]
[352478214,1739133044062,-216.0,0.0001776,2]
[352478215,1739133044072,-4843.4,0.000178,2]
[352478216,1739133044082,-173.04322824,0.00017803,2]
[352478217,1739133044093,-150.0,0.00017803,2]
[352478218,1739133044103,-150.0,0.00017803,2]
[352478219,1739133044112,-150.0,0.00017803,2]
[352478220,1739133044122,-1000.0,0.00017808,4]
[352478221,1739133044132,-350.0,0.00017808,2]
[352478222,1739133044141,-173.04322824,0.00017823,2]
[352478223,1739133044151,-150.0,0.00017839,2]
[352478224,1739133044160,-173.04322824,0.00017843,2]
[352478225,1739133044170,-173.04322824,0.00017863,2]
[352478226,1739133044179,-150.0,0.00017865,2]
[352478227,1739133044189,-150.0,0.00017875,2]
[352478228,1739133044199,-173.04322824,0.00017883,2]
[352478229,1739133044208,-282.15083,0.00017888,7]
[352478230,1739133044219,-173.04322824,0.00017903,2]
[352478231,1739133044229,-150.0,0.00017911,2]
[352478232,1739133044239,-173.04322824,0.00017923,2]
[352478233,1739133044249,-150.0,0.00017926,2]
[352478234,1739133044259,-173.04322824,0.00017943,2]
[352478235,1739133044269,-150.0,0.00017947,2]
[352478236,1739133044279,-150.0,0.00017955,2]
[352478237,1739133044289,-173.04322824,0.00017963,2]
[352478238,1739133044299,-173.04322824,0.00017983,2]
[352478239,1739133044308,-150.0,0.00017983,2]
[352478240,1739133044318,-150.0,0.00017988,2]
[352478241,1739133044326,-900.0,0.00018,19]
[352478242,1739133044336,-76400.0,0.00018,30]
[352478243,1739133044345,-1064.0,0.00018,2]
[352478244,1739133044356,-15140.5964551,0.00018,2]
[352478245,1739133044365,-23683.14249102,0.00018,2]
[352478246,1739133044375,-30179.95237059,0.00018,2]
[352478247,1739133044384,-1137.22902298,0.00018,2]
[352478248,1739133044394,-77715.04377727,0.00018,2]
[352478249,1739133044403,-1035.14662526,0.00018,2]
[352478250,1739133044413,-5624.46307854,0.00018,2]
[352478251,1739133044422,-173.04322824,0.00018003,2]
[352478252,1739133044432,-150.0,0.00018019,2]
[352478253,1739133044442,-173.04322824,0.00018023,2]
[352478254,1739133044451,-173.04322824,0.00018043,2]
[352478255,1739133044462,-150.0,0.0001805,2]
[352478256,1739133044472,-150.0,0.00018054,2]
[352478257,1739133044481,-173.04322824,0.00018062,2]
[352478258,1739133044491,-1000.0,0.00018082,4]
[352478259,1739133044501,-2000.0,0.00018082,2]
[352478260,1739133044512,-173.04322824,0.00018082,2]
[352478261,1739133044522,-282.15083,0.00018088,7]
[352478262,1739133044531,-150.0,0.0001809,2]
[352478263,1739133044540,-1701.04441518,0.000181,2]
[352478264,1739133044550,-401844.64029456,0.000181,2]
[352478265,1739133044560,-173.04322824,0.00018102,2]
[352478266,1739133044569,-1023.08,0.00018103,2]
[352478267,1739133044579,-150.0,0.00018107,2]
[352478268,1739133044588,-150.0,0.00018112,2]
[352478269,1739133044601,-173.04322824,0.00018122,2]
[352478270,1739133044611,-150.0,0.00018126,2]
[352478271,1739133044621,-173.04322824,0.00018142,2]
[352478272,1739133044631,-200.0,0.00018148,2]